[Event "FIDE World Cadets GU12 2022"]
[Site "Batumi"]
[Date "2022.09.20"]
[Round "5.6"]
[White "Ismayilova, Khanim"]
[Black "Derlich, Sarah Sima"]
[Result "1-0"]
[ECO "D37"]
[WhiteElo "1901"]
[BlackElo "1490"]
[Annotator "TA"]
[PlyCount "127"]
[EventDate "2022.09.16"]
[EventType "swiss"]
[EventCountry "GEO"]
[SourceTitle "playchess.com"]
[Source "ChessBase"]
[SourceQuality "1"]
[TimeControl "5400+30"]

{[%evp 9,127,4,0,-33,-33,-27,-26,-32,-35,-32,-30,-59,-42,-47,-43,-52,49,66,81,87,85,72,98,74,69,63,69,70,227,225,218,201,292,295,354,342,396,391,406,347,387,382,359,355,339,354,339,343,448,433,433,425,679,675,672,672,633,496,489,489,5383,5510,5281,4998,29962,29964,29964,29963,29964,29964,29964,29963,29964,29965,29964,29966,29966,29966,29967,29968,29969,29970,29972,29973,29980,29975,29977,29975,29975,29976,29976,29977,29977,29978,29978,29979,29979,29980,29980,29981,29981,29981,29983,29984,29984,29984,29984,29985,29986,29987,29987,29988,29988,29988,29989,29988,29988,29989,29989,29990]} 1. c4 {[%emt 0:01:00]} e6 {[%emt 0:01:00]} 2. Nc3 {[%emt 0:00:00]} d5 {[%emt 0:00:30]} 3. e3 {[%emt 0:00:00]} Nf6 {[%emt 0:00:30]} 4. d4 {[%emt 0:00:30]} a6 {[%emt 0:00:00]} 5. Nf3 {[%emt 0:01:30]} Nbd7 {[%emt 0:03:00]} 6. Bd3 {[%emt 0:01:30] D37: Queen's Gambit Declined: 5 Bf4.} dxc4 {[%emt 0:00:30]} 7. Bxc4 {[%emt 0:00:30]} b5 {[%emt 0:00:30]} 8. Bd3 {[%emt 0:00:30] Black has an edge.} Bb7 {[%emt 0:02:30]} 9. O-O {[%emt 0:02:30]} c5 {[%emt 0:02:30]} 10. b3 {[%emt 0:02:30]} Bd6 {[%emt 0:02:30]} 11. Bb2 {[%emt 0:01:30]} O-O {[%emt 0:01:30]} 12. Rc1 {[%emt 0:03:30] [#]} Ng4 $146 {[%emt 0:22:30]} ({Black should try} 12... cxd4 $15 13. Nxd4 Rc8) ({Predecessor:} 12... Qb6 13. Ne2 Rac8 14. Ng3 Qa5 15. Bb1 Rfd8 16. Qe2 cxd4 17. Nxd4 Nc5 18. Nh5 Nce4 19. Nxf6+ Nxf6 {1-0 (35) Zilliox,C (1970)-Moreira,P (2032) Loire 2003}) 13. Be4 $14 {[%emt 0:04:30]} (13. Ne4 {feels hotter.} Nxh2 14. Nxh2 Bxh2+ 15. Kxh2 c4 16. Nd6) 13... Bxe4 {[%emt 0:07:30]} 14. Nxe4 {[%emt 0:00:30]} Bxh2+ {[%emt 0:02:30]} 15. Nxh2 {[%emt 0:07:30]} Nxh2 {[%emt 0:00:30]} 16. Kxh2 {[%emt 0:07:30]} Qh4+ {[%emt 0:00:30]} 17. Kg1 {[%emt 0:00:30]} Qxe4 {[%emt 0:00:30]} 18. dxc5 {[%emt 0:00:30][%cal Bd4c5,Bc5c6,Bc6c7][%mdl 96] Discovered Attack} Qc6 {[%emt 0:04:30] This move loses the game for Black.} (18... Nb8 $14) 19. Qg4 $18 {[%emt 0:03:00][%csl Gb2][%cal Rg4g7]} e5 {[%emt 0:05:30]} 20. Rfd1 $40 {[%emt 0:00:30][%mdl 128] White has strong attack.} f5 {[%emt 0:05:30]} (20... Nf6 $142 21. Qg3 Ne4 22. Qxe5 f6 23. Qd5+ Qxd5 24. Rxd5 Ra7) 21. Qf3 {[%emt 0:04:30]} Qxf3 {[%emt 0:03:30]} 22. gxf3 {[%emt 0:00:30]} Rfd8 {[%emt 0:05:30]} 23. c6 {[%emt 0:00:30]} Nf8 {[%emt 0:01:30]} 24. Bxe5 {[%emt 0:01:30]} Ne6 {[%emt 0:04:30]} 25. c7 {[%emt 0:01:30]} Rxd1+ {[%emt 0:00:30]} 26. Rxd1 {[%emt 0:00:30][%mdl 4096] Endgame KRB-KRN} Kf8 {[%emt 0:00:30]} 27. e4 {[%emt 0:05:30]} fxe4 {[%emt 0:05:01]} 28. f4 {[%emt 0:01:30][%cal Bf3f4,Bf4f5][%mdl 32]} ({Don't take} 28. fxe4 Ke7 29. f4 Rc8 $18) 28... Rc8 {[%emt 0:01:10]} 29. f5 $1 {[%emt 0:00:30]} Nxc7 {[%emt 0:03:26]} 30. Rc1 {[%emt 0:00:30]} Ke7 {[%emt 0:05:33]} (30... Re8 $142 31. Bd6+ Kf7) 31. Rxc7+ {[%emt 0:01:30]} (31. Bxc7 Kf7 32. Rc5 g6 33. fxg6+ Kxg6) 31... Rxc7 {[%emt 0:00:30]} 32. Bxc7 {[%emt 0:00:30] Strongly threatening Be5. KB-KP} Kf6 {[%emt 0:00:42] Prevents Be5+.} 33. Kg2 {[%emt 0:00:30]} Kxf5 {[%emt 0:00:30]} 34. Kg3 {[%emt 0:00:30]} g5 {[%emt 0:01:16]} (34... g6 $142 35. Ba5 h5) 35. b4 {[%emt 0:00:00]} h5 {[%emt 0:00:30] [#]} 36. Bd8 $1 {[%emt 0:00:30]} h4+ {[%emt 0:00:23]} 37. Kh3 {[%emt 0:03:30] White mates.} Kf4 {[%emt 0:01:06]} 38. Bc7+ Kf3 39. Bb6 Kf4 40. Bd4 Kf3 41. a3 Kf4 42. Be3+ Kf3 43. Bxg5 Kxf2 44. Bxh4+ {KB-K3P} Ke2 45. Kg4 Kd3 46. Kf4 Kc4 47. Bd8 Kd4 48. Bc7 Kd5 49. Ke3 Kc6 50. Be5 Kd5 51. Bd4 Kc4 52. Kxe4 {KB-KPP} Kb3 53. Bb6 Kxa3 {[#]} 54. Ba5 $1 Kb3 55. Kd4 Ka4 56. Kc5 Ka3 57. Kb6 Kb3 58. Kxa6 {KB-KP} Kc4 59. Kb6 Kd5 60. Kxb5 Kd6 61. Kb6 Kd7 62. Ka7 Kc6 63. Ka6 Kd7 64. b5 {Weighted Error Value: White=0.05 (flawless) /Black=0.39} 1-0

[Event "FIDE World Cadets GU12 2022"]
[Site "Batumi"]
[Date "2022.09.20"]
[Round "5.7"]
[White "Yousefian, Maedeh"]
[Black "Imomkuzieva, Nilufarkhon"]
[Result "1/2-1/2"]
[ECO "C28"]
[WhiteElo "1765"]
[BlackElo "1481"]
[Annotator "NA COMBH"]
[PlyCount "130"]
[EventDate "2022.09.16"]
[EventType "swiss"]
[EventCountry "GEO"]
[SourceTitle "playchess.com"]
[Source "ChessBase"]
[SourceQuality "1"]
[TimeControl "5400+30"]

1. e4 e5 2. Bc4 Nf6 3. Nc3 Nc6 4. d3 Bb4 5. Nf3 d6 6. h3 Be6 7. Bb3 Bxb3 8. axb3 d5 9. exd5 Nxd5 10. Bd2 O-O 11. O-O Bxc3 12. bxc3 f5 13. c4 Nf6 14. Bc3 Re8 15. Qd2 h6 16. b4 e4 17. Nh4 exd3 18. cxd3 Ne4 19. dxe4 Qxh4 20. Qd5+ Kh8 21. exf5 Rad8 22. Qf7 Nd4 23. Bxd4 Qxd4 24. Rae1 Rf8 25. Qxc7 Rc8 26. Qxb7 Rxc4 27. Qf3 Rxb4 28. Re7 a5 29. Rfe1 a4 30. Qh5 Rb2 31. R7e2 Rxe2 32. Qxe2 Rxf5 33. Qc2 Rf8 34. Re4 Qa1+ 35. Kh2 a3 36. Ra4 Qb2 37. Qc4 Rb8 38. Ra7 Rf8 39. Ra4 Rd8 40. Qf7 Rb8 41. Ra7 Qe5+ 42. f4 Qb2 43. h4 Rd8 44. h5 Rc8 45. Qe6 Rf8 46. Ra4 Qb5 47. Rxa3 Qxh5+ 48. Rh3 Qf5 49. Qxf5 Rxf5 50. Rh4 Kg8 51. Kg3 Kf7 52. Kg4 Ra5 53. Rh1 Kg6 54. Rc1 h5+ 55. Kh4 Kf5 56. g3 g6 57. Rc8 Rb5 58. Rf8+ Ke6 59. Re8+ Kf6 60. Ra8 Kf5 61. Re8 Kf6 62. Kh3 Ra5 63. Re3 Kf5 64. Re1 Rb5 65. Re2 Ra5 1/2-1/2

[Event "FIDE World Cadets GU12 2022"]
[Site "Batumi"]
[Date "2022.09.20"]
[Round "5.9"]
[White "Alfano, Emilie"]
[Black "Urangoo, Gurvanbaatar"]
[Result "0-1"]
[ECO "B51"]
[WhiteElo "1712"]
[BlackElo "1391"]
[Annotator "NA RC COMBH"]
[PlyCount "74"]
[EventDate "2022.09.16"]
[EventType "swiss"]
[EventCountry "GEO"]
[SourceTitle "playchess.com"]
[Source "ChessBase"]
[SourceQuality "1"]
[TimeControl "5400+30"]

1. e4 {[%emt 0:01:00]} c5 {[%emt 0:01:00]} 2. Nf3 {[%emt 0:00:30]} d6 {[%emt 0:00:00]} 3. Bb5+ {[%emt 0:00:00]} Nd7 {[%emt 0:00:00]} 4. Ba4 {[%emt 0:00:00]} Ngf6 {[%emt 0:01:30]} 5. O-O {[%emt 0:02:30]} a6 {[%emt 0:00:30]} 6. c4 {[%emt 0:13:30]} e5 {[%emt 0:04:30]} 7. Nc3 {[%emt 0:00:30]} Be7 {[%emt 0:00:00]} 8. a3 {[%emt 0:00:00]} O-O {[%emt 0:01:00]} 9. b4 {[%emt 0:01:00]} Qc7 {[%emt 0:01:30]} 10. d3 {[%emt 0:00:30]} Nb6 {[%emt 0:01:30]} 11. Bc2 {[%emt 0:00:30]} Bg4 {[%emt 0:02:30]} 12. h3 {[%emt 0:01:30]} Bh5 {[%emt 0:01:30]} 13. Bb2 {[%emt 0:00:30]} Nbd7 {[%emt 0:06:30]} 14. Qe2 {[%emt 0:00:30]} Rfd8 {[%emt 0:01:30]} 15. Nd1 {[%emt 0:00:30]} Nf8 {[%emt 0:02:30]} 16. Ne3 {[%emt 0:00:30]} Ne6 {[%emt 0:01:30]} 17. Nf5 {[%emt 0:00:30]} Bf8 {[%emt 0:02:30]} 18. Ng3 {[%emt 0:01:30]} Nf4 {[%emt 0:00:30]} 19. Qe3 {[%emt 0:00:30]} Bg6 {[%emt 0:01:30]} 20. bxc5 {[%emt 0:01:30]} Nd7 {[%emt 0:09:30]} 21. cxd6 {[%emt 0:10:30]} Bxd6 {[%emt 0:01:30]} 22. Bb3 {[%emt 0:01:30]} Nc5 {[%emt 0:05:30]} 23. d4 {[%emt 0:00:30]} exd4 {[%emt 0:00:30]} 24. Nxd4 {[%emt 0:00:30]} Nfd3 {[%emt 0:03:30]} 25. Rab1 {[%emt 0:08:30]} Nxf2 {[%emt 0:04:30]} 26. Ngf5 {[%emt 0:28:30]} Nfxe4 {[%emt 0:03:30]} 27. Rbe1 {[%emt 0:01:30]} Nxb3 {[%emt 0:03:30]} 28. Qxb3 {[%emt 0:02:30]} Nd2 {[%emt 0:00:30]} 29. Qc3 {[%emt 0:00:30]} Nxf1 {[%emt 0:03:30]} 30. Nb5 {[%emt 0:02:30]} Qc5+ {[%emt 0:00:30]} 31. Kh1 {[%emt 0:04:19]} Ng3+ {[%emt 0:13:30]} 32. Nxg3 {[%emt 0:01:13]} Bf8 {[%emt 0:00:30]} 33. Nd4 {[%emt 0:00:52]} Rac8 {[%emt 0:00:00]} 34. Rc1 {[%emt 0:02:21]} Qg5 {[%emt 0:01:00]} 35. Qb3 {[%emt 0:01:30]} Rxd4 {[%emt 0:00:30]} 36. Qxb7 {[%emt 0:00:43]} Rdxc4 {[%emt 0:00:30]} 37. Rxc4 {[%emt 0:00:43]} Rxc4 {[%emt 0:00:30]} 0-1

[Event "FIDE World Cadets GU12 2022"]
[Site "Batumi"]
[Date "2022.09.20"]
[Round "5.10"]
[White "Shreya G Hipparagi"]
[Black "Belaya, Liliya"]
[Result "1-0"]
[ECO "C54"]
[WhiteElo "1574"]
[BlackElo "1266"]
[Annotator "NA RC COMBH"]
[PlyCount "63"]
[EventDate "2022.09.16"]
[EventType "swiss"]
[EventCountry "GEO"]
[SourceTitle "playchess.com"]
[Source "ChessBase"]
[SourceQuality "1"]
[TimeControl "5400+30"]

1. e4 {[%emt 0:01:00]} e5 {[%emt 0:01:00]} 2. Nf3 {[%emt 0:00:30]} Nc6 {[%emt 0:00:30]} 3. Bc4 {[%emt 0:00:00]} Nf6 {[%emt 0:00:00]} 4. d3 {[%emt 0:00:00]} Bc5 {[%emt 0:00:00]} 5. c3 {[%emt 0:00:30]} d6 {[%emt 0:00:00]} 6. O-O {[%emt 0:00:30]} O-O {[%emt 0:00:00]} 7. Bg5 {[%emt 0:00:30]} h6 {[%emt 0:00:30]} 8. Bh4 {[%emt 0:00:30]} Bg4 {[%emt 0:03:30]} 9. Nbd2 {[%emt 0:01:30]} Kh7 {[%emt 0:09:30]} 10. a4 {[%emt 0:01:30]} a6 {[%emt 0:02:30]} 11. a5 {[%emt 0:01:30]} Qd7 {[%emt 0:05:30]} 12. Kh1 {[%emt 0:02:30]} d5 {[%emt 0:01:30]} 13. exd5 {[%emt 0:02:30]} Nxd5 {[%emt 0:00:30]} 14. Bg3 {[%emt 0:00:30]} Rae8 {[%emt 0:16:30]} 15. Qb3 {[%emt 0:02:30]} Nf4 {[%emt 0:01:30]} 16. d4 {[%emt 0:06:30]} e4 {[%emt 0:07:30]} 17. Qc2 {[%emt 0:14:30]} Bf5 {[%emt 0:01:30]} 18. Nh4 {[%emt 0:01:30]} Bd6 {[%emt 0:01:30]} 19. Nxf5 {[%emt 0:03:30]} Qxf5 {[%emt 0:00:30]} 20. f3 {[%emt 0:00:00]} Nxg2 {[%emt 0:07:30]} 21. fxe4 {[%emt 0:05:00]} Qh3 {[%emt 0:03:30]} 22. e5+ {[%emt 0:00:30]} Kh8 {[%emt 0:00:00]} 23. Qe4 {[%emt 0:00:30]} f5 {[%emt 0:16:00]} 24. Qxg2 {[%emt 0:00:30]} Qxg2+ {[%emt 0:00:30]} 25. Kxg2 {[%emt 0:00:30]} Be7 {[%emt 0:00:30]} 26. d5 {[%emt 0:00:30]} Nd8 {[%emt 0:01:51]} 27. e6 {[%emt 0:00:30]} Bd6 {[%emt 0:00:30]} 28. Bxd6 {[%emt 0:00:30]} cxd6 {[%emt 0:00:30]} 29. Rae1 {[%emt 0:00:00]} Re7 {[%emt 0:00:37]} 30. Bd3 {[%emt 0:00:00]} f4 {[%emt 0:00:47]} 31. Ne4 {[%emt 0:00:30]} Rf5 {[%emt 0:00:30]} 32. c4 {[%emt 0:00:00]} 1-0

[Event "FIDE World Cadets GU12 2022"]
[Site "Batumi"]
[Date "2022.09.20"]
[Round "5.11"]
[White "Kholyavko, Mariya"]
[Black "Garcia Rodriguez, Laia"]
[Result "1-0"]
[ECO "B15"]
[WhiteElo "1421"]
[BlackElo "1742"]
[Annotator "NA RC COMBH"]
[PlyCount "61"]
[EventDate "2022.09.16"]
[EventType "swiss"]
[EventCountry "GEO"]
[SourceTitle "playchess.com"]
[Source "ChessBase"]
[SourceQuality "1"]
[TimeControl "5400+30"]

1. e4 {[%emt 0:01:00]} c6 {[%emt 0:01:00]} 2. d4 {[%emt 0:00:30]} d5 {[%emt 0:00:30]} 3. Nc3 {[%emt 0:00:00]} dxe4 {[%emt 0:00:00]} 4. Nxe4 {[%emt 0:00:00]} Nf6 {[%emt 0:01:00]} 5. Nxf6+ {[%emt 0:00:00]} exf6 {[%emt 0:00:30]} 6. c3 {[%emt 0:00:00]} Bd6 {[%emt 0:00:00]} 7. Bd3 {[%emt 0:00:00]} O-O {[%emt 0:00:00]} 8. Qc2 {[%emt 0:00:00]} Re8+ {[%emt 0:00:30]} 9. Ne2 {[%emt 0:00:30]} h5 {[%emt 0:00:30]} 10. O-O {[%emt 0:00:30]} h4 {[%emt 0:00:30]} 11. h3 {[%emt 0:00:00]} Nd7 {[%emt 0:00:30]} 12. Be3 {[%emt 0:02:00]} Nf8 {[%emt 0:01:30]} 13. Rad1 {[%emt 0:01:30]} Bd7 {[%emt 0:03:30]} 14. Rfe1 {[%emt 0:01:30]} Qc8 {[%emt 0:02:30]} 15. Nf4 {[%emt 0:01:30]} Qc7 {[%emt 0:02:30]} 16. Qd2 {[%emt 0:02:30]} b6 {[%emt 0:13:30]} 17. Nh5 {[%emt 0:10:30]} Ng6 {[%emt 0:13:30]} 18. Bb1 {[%emt 0:06:30]} Rad8 {[%emt 0:08:30]} 19. Qd3 {[%emt 0:06:30]} f5 {[%emt 0:04:30]} 20. Bg5 {[%emt 0:01:30]} Be7 {[%emt 0:07:30]} 21. Bxe7 {[%emt 0:03:30]} Rxe7 {[%emt 0:00:00]} 22. Rxe7 {[%emt 0:06:30]} Nxe7 {[%emt 0:00:00]} 23. Qe3 {[%emt 0:00:30]} Nd5 {[%emt 0:01:30]} 24. Qg5 {[%emt 0:00:30]} g6 {[%emt 0:02:30]} 25. c4 {[%emt 0:00:30]} Nb4 {[%emt 0:13:30]} 26. a3 {[%emt 0:00:30]} Na6 {[%emt 0:00:30]} 27. Re1 {[%emt 0:02:30]} Be6 {[%emt 0:02:30]} 28. Rxe6 {[%emt 0:00:30]} fxe6 {[%emt 0:05:05]} 29. Qxg6+ {[%emt 0:00:30]} Kh8 {[%emt 0:06:43]} 30. Nf6 {[%emt 0:00:00]} Qg7 {[%emt 0:01:40]} 31. Qh5+ {[%emt 0:00:00]} 1-0

[Event "FIDE World Cadets GU12 2022"]
[Site "Batumi"]
[Date "2022.09.20"]
[Round "5.12"]
[White "Shimanskaia, Tatiana"]
[Black "Haasova, Timea"]
[Result "1-0"]
[ECO "C06"]
[WhiteElo "1353"]
[BlackElo "1707"]
[Annotator "NA COMBH"]
[PlyCount "135"]
[EventDate "2022.09.16"]
[EventType "swiss"]
[EventCountry "GEO"]
[SourceTitle "playchess.com"]
[Source "ChessBase"]
[SourceQuality "1"]
[TimeControl "5400+30"]

1. e4 e6 2. d4 d5 3. Nd2 Nf6 4. e5 Nfd7 5. Bd3 c5 6. c3 Nc6 7. Ne2 cxd4 8. cxd4 f6 9. exf6 Nxf6 10. O-O Bd6 11. Nf3 O-O 12. Bg5 Qc7 13. Bh4 e5 14. dxe5 Nxe5 15. Nxe5 Bxe5 16. Bg3 Bxg3 17. Nxg3 Bg4 18. Qb3 Qf7 19. f3 Be6 20. Bf5 Bxf5 21. Nxf5 Qd7 22. Ne3 Rad8 23. Rad1 Qf7 24. Rd4 Rd7 25. Rfd1 Rfd8 26. Qd3 Qe6 27. Nf5 Re8 28. Ng3 Qb6 29. Qb3 Qc5 30. Qb4 Qc6 31. R4d3 Qe6 32. Rc1 Rde7 33. Nf1 Qf5 34. Qd4 Qg5 35. Rdc3 Re2 36. Ng3 Rxb2 37. Rc8 Rxa2 38. Rxe8+ Nxe8 39. Rc8 Kf7 40. f4 Qe7 41. Qxd5+ Qe6 42. Qxe6+ Kxe6 43. Rxe8+ Kf7 44. Rb8 Rb2 45. Ne4 Ke7 46. Nc5 b5 47. Rb7+ Kd6 48. Nd3 Rb1+ 49. Kf2 a5 50. Rxg7 a4 51. Ra7 Rb3 52. Ke3 Kd5 53. f5 Rc3 54. Kd2 Rc8 55. f6 Ke6 56. Ra6+ Kf7 57. Ne5+ Kf8 58. Rb6 Rd8+ 59. Kc3 Rc8+ 60. Kb4 Ra8 61. Ka3 Re8 62. Rxb5 Ra8 63. g4 h6 64. h4 Kg8 65. g5 hxg5 66. hxg5 Rd8 67. Kxa4 Kf8 68. Rb8 1-0

[Event "FIDE World Cadets GU12 2022"]
[Site "Batumi"]
[Date "2022.09.20"]
[Round "5.13"]
[White "Huseynova, Lala"]
[Black "Tynyshtyk, Diana"]
[Result "1-0"]
[ECO "B38"]
[WhiteElo "1702"]
[BlackElo "1373"]
[Annotator "NA RC COMBH"]
[PlyCount "67"]
[EventDate "2022.09.16"]
[EventType "swiss"]
[EventCountry "GEO"]
[SourceTitle "playchess.com"]
[Source "ChessBase"]
[SourceQuality "1"]
[TimeControl "5400+30"]

1. e4 {[%emt 0:01:00]} c5 {[%emt 0:01:00]} 2. Nf3 {[%emt 0:00:30]} Nc6 {[%emt 0:00:30]} 3. d4 {[%emt 0:00:30]} cxd4 {[%emt 0:00:30]} 4. Nxd4 {[%emt 0:00:30]} g6 {[%emt 0:00:00]} 5. c4 {[%emt 0:00:00]} Bg7 {[%emt 0:00:00]} 6. Be3 {[%emt 0:00:00]} Nf6 {[%emt 0:00:30]} 7. Nc3 {[%emt 0:00:30]} O-O {[%emt 0:00:00]} 8. Be2 {[%emt 0:02:30]} d6 {[%emt 0:00:00]} 9. h3 {[%emt 0:03:30]} Bd7 {[%emt 0:01:30]} 10. O-O {[%emt 0:11:30]} Nxd4 {[%emt 0:00:30]} 11. Bxd4 {[%emt 0:00:30]} Bc6 {[%emt 0:02:30]} 12. Qd3 {[%emt 0:04:30]} Nd7 {[%emt 0:04:30]} 13. Bxg7 {[%emt 0:02:30]} Kxg7 {[%emt 0:00:00]} 14. b4 {[%emt 0:01:30]} Kg8 {[%emt 0:13:00]} 15. Rad1 {[%emt 0:10:30]} a5 {[%emt 0:05:30]} 16. b5 {[%emt 0:00:30]} Nc5 {[%emt 0:04:30]} 17. Qe3 {[%emt 0:01:30]} Bd7 {[%emt 0:18:30]} 18. e5 {[%emt 0:02:30]} Re8 {[%emt 0:05:30]} 19. exd6 {[%emt 0:04:30]} exd6 {[%emt 0:00:30]} 20. Qf4 {[%emt 0:01:30]} Bf5 {[%emt 0:02:30]} 21. Rxd6 {[%emt 0:04:30]} Qb8 {[%emt 0:04:30]} 22. Rfd1 {[%emt 0:05:30]} Ne4 {[%emt 0:00:30]} 23. Nxe4 {[%emt 0:01:30]} Rxe4 {[%emt 0:04:30]} 24. Qg5 {[%emt 0:10:30]} Qc7 {[%emt 0:00:30]} 25. Qg3 {[%emt 0:04:30]} Qe7 {[%emt 0:11:30]} 26. Bf1 {[%emt 0:03:30]} Rc8 {[%emt 0:03:26]} 27. Qc3 {[%emt 0:00:30]} Qg5 {[%emt 0:03:38]} 28. c5 {[%emt 0:01:30]} Rh4 {[%emt 0:02:57]} 29. R6d5 {[%emt 0:05:10]} h5 {[%emt 0:09:52]} 30. c6 {[%emt 0:01:28]} bxc6 {[%emt 0:01:19]} 31. bxc6 {[%emt 0:00:22]} Ra4 {[%emt 0:01:06]} 32. c7 {[%emt 0:00:45]} Rxa2 {[%emt 0:00:43]} 33. Rd8+ {[%emt 0:00:30]} Kh7 {[%emt 0:00:06]} 34. Qh8# {[%emt 0:00:00]} 1-0

[Event "FIDE World Cadets GU12 2022"]
[Site "Batumi"]
[Date "2022.09.20"]
[Round "5.14"]
[White "Enkhuyanga Gantsolmon"]
[Black "Huseynli, Ayan"]
[Result "0-1"]
[ECO "A90"]
[WhiteElo "1301"]
[BlackElo "1572"]
[Annotator "NA RC COMBH"]
[PlyCount "82"]
[EventDate "2022.09.16"]
[EventType "swiss"]
[EventCountry "GEO"]
[SourceTitle "playchess.com"]
[Source "ChessBase"]
[SourceQuality "1"]
[TimeControl "5400+30"]

1. d4 {[%emt 0:01:00]} d5 {[%emt 0:01:00]} 2. c4 {[%emt 0:00:30]} e6 {[%emt 0:00:00]} 3. Nf3 {[%emt 0:00:00]} c6 {[%emt 0:00:00]} 4. Nbd2 {[%emt 0:01:00]} f5 {[%emt 0:00:30]} 5. g3 {[%emt 0:00:30]} Bd6 {[%emt 0:00:30]} 6. Bg2 {[%emt 0:00:30]} Nd7 {[%emt 0:00:00]} 7. O-O {[%emt 0:01:30]} Ngf6 {[%emt 0:00:00]} 8. Ne1 {[%emt 0:09:30]} O-O {[%emt 0:04:30]} 9. f3 {[%emt 0:01:30]} f4 {[%emt 0:02:30]} 10. gxf4 {[%emt 0:04:30]} Bxf4 {[%emt 0:00:30]} 11. Nb3 {[%emt 0:03:30]} g5 {[%emt 0:11:30]} 12. cxd5 {[%emt 0:02:30]} exd5 {[%emt 0:01:30]} 13. e3 {[%emt 0:01:30]} Bc7 {[%emt 0:03:30]} 14. e4 {[%emt 0:02:30]} Nh5 {[%emt 0:03:30]} 15. e5 {[%emt 0:02:30]} Nf4 {[%emt 0:06:30]} 16. Nd3 {[%emt 0:02:30]} a5 {[%emt 0:03:30]} 17. Bxf4 {[%emt 0:04:30]} gxf4 {[%emt 0:00:30]} 18. a4 {[%emt 0:02:30]} Nb6 {[%emt 0:02:30]} 19. Kh1 {[%emt 0:03:30]} Nc4 {[%emt 0:03:30]} 20. Rg1 {[%emt 0:01:30]} Kh8 {[%emt 0:02:30]} 21. Qe2 {[%emt 0:02:30]} Qh4 {[%emt 0:02:30]} 22. Nd2 {[%emt 0:05:30]} Ne3 {[%emt 0:03:30]} 23. Nf1 {[%emt 0:01:30]} Nf5 {[%emt 0:02:30]} 24. b4 {[%emt 0:06:30]} Nxd4 {[%emt 0:05:30]} 25. Qb2 {[%emt 0:00:30]} Ne6 {[%emt 0:01:30]} 26. b5 {[%emt 0:03:30]} Bb6 {[%emt 0:03:30]} 27. bxc6 {[%emt 0:03:30]} Bxg1 {[%emt 0:03:30]} 28. cxb7 {[%emt 0:02:30]} Bxb7 {[%emt 0:04:30]} 29. Qxb7 {[%emt 0:04:30]} Bd4 {[%emt 0:04:30]} 30. Rc1 {[%emt 0:01:30]} Qd8 {[%emt 0:09:12]} 31. Qc6 {[%emt 0:03:30]} Ng5 {[%emt 0:02:58]} 32. Qh6 {[%emt 0:02:30]} Rb8 {[%emt 0:03:02]} 33. h4 {[%emt 0:02:23]} Nf7 {[%emt 0:01:20]} 34. Qxf4 {[%emt 0:01:23]} Bb2 {[%emt 0:01:28]} 35. Nxb2 {[%emt 0:02:00]} Rxb2 {[%emt 0:00:07]} 36. e6 {[%emt 0:01:01]} Rb4 {[%emt 0:01:28]} 37. Qe3 {[%emt 0:01:15]} Rxh4+ {[%emt 0:04:10]} 38. Kg1 {[%emt 0:01:15]} d4 {[%emt 0:01:38]} 39. Qe1 {[%emt 0:00:37]} Re8 {[%emt 0:03:24]} 40. Rd1 {[%emt 0:07:49]} Qf6 {[%emt 0:01:04]} 41. Qxa5 {[%emt 0:02:38]} Qxe6 {[%emt 0:00:30]} 0-1

[Event "FIDE World Cadets GU12 2022"]
[Site "Batumi"]
[Date "2022.09.20"]
[Round "5.16"]
[White "Zarkua, Anastasia"]
[Black "Krkyasharyan, Sona"]
[Result "0-1"]
[ECO "D48"]
[WhiteElo "1294"]
[BlackElo "1484"]
[Annotator "NA RC COMBH"]
[PlyCount "108"]
[EventDate "2022.09.16"]
[EventType "swiss"]
[EventCountry "GEO"]
[SourceTitle "playchess.com"]
[Source "ChessBase"]
[SourceQuality "1"]
[TimeControl "5400+30"]

1. d4 {[%emt 0:01:00]} d5 {[%emt 0:01:00]} 2. Nf3 {[%emt 0:00:30]} Nf6 {[%emt 0:00:30]} 3. c4 {[%emt 0:00:30]} c6 {[%emt 0:00:00]} 4. e3 {[%emt 0:00:00]} e6 {[%emt 0:00:00]} 5. Nc3 {[%emt 0:00:00]} Nbd7 {[%emt 0:00:00]} 6. Bd3 {[%emt 0:00:00]} dxc4 {[%emt 0:00:00]} 7. Bxc4 {[%emt 0:00:00]} b5 {[%emt 0:00:00]} 8. Bd3 {[%emt 0:00:30]} a6 {[%emt 0:00:00]} 9. O-O {[%emt 0:00:30]} c5 {[%emt 0:00:00]} 10. b3 {[%emt 0:04:30]} Be7 {[%emt 0:01:00]} 11. Bb2 {[%emt 0:02:30]} O-O {[%emt 0:00:30]} 12. Rc1 {[%emt 0:02:30]} Bb7 {[%emt 0:02:30]} 13. Qe2 {[%emt 0:05:30]} Rc8 {[%emt 0:01:30]} 14. Rfd1 {[%emt 0:01:30]} Qb6 {[%emt 0:01:30]} 15. a4 {[%emt 0:17:30]} Bxf3 {[%emt 0:16:30]} 16. gxf3 {[%emt 0:01:30]} cxd4 {[%emt 0:11:30]} 17. exd4 {[%emt 0:00:30]} b4 {[%emt 0:00:30]} 18. Ne4 {[%emt 0:03:30]} a5 {[%emt 0:00:30]} 19. Ba6 {[%emt 0:05:30]} Ra8 {[%emt 0:03:30]} 20. Bb5 {[%emt 0:02:30]} Rfd8 {[%emt 0:02:30]} 21. Rc6 {[%emt 0:03:30]} Qb7 {[%emt 0:03:30]} 22. Rdc1 {[%emt 0:04:30]} Nd5 {[%emt 0:00:30]} 23. Qd2 {[%emt 0:09:30]} N7b6 {[%emt 0:01:30]} 24. Qe2 {[%emt 0:04:30]} h6 {[%emt 0:04:30]} 25. R6c2 {[%emt 0:01:30]} Rac8 {[%emt 0:03:30]} 26. Nc5 {[%emt 0:04:30]} Qb8 {[%emt 0:04:30]} 27. Ba6 {[%emt 0:05:30]} Rc7 {[%emt 0:02:30]} 28. Bb5 {[%emt 0:00:35]} Rcc8 {[%emt 0:02:30]} 29. Qe4 {[%emt 0:03:58]} Bg5 {[%emt 0:04:30]} 30. Rd1 {[%emt 0:01:31]} Qf4 {[%emt 0:03:30]} 31. Qxf4 {[%emt 0:01:56]} Bxf4 {[%emt 0:00:00]} 32. Bd3 {[%emt 0:02:23]} Rc7 {[%emt 0:01:00]} 33. h4 {[%emt 0:02:10]} h5 {[%emt 0:03:30]} 34. Ba1 {[%emt 0:01:53]} Bd6 {[%emt 0:01:30]} 35. Ne4 {[%emt 0:02:42]} Rxc2 {[%emt 0:00:30]} 36. Bxc2 {[%emt 0:00:07]} Be7 {[%emt 0:01:30]} 37. Ng5 {[%emt 0:00:30]} Rc8 {[%emt 0:00:30]} 38. Bd3 {[%emt 0:00:26]} Nf4 {[%emt 0:02:30]} 39. Bb1 {[%emt 0:02:29]} Bxg5 {[%emt 0:02:30]} 40. hxg5 {[%emt 0:00:35]} Nh3+ {[%emt 0:00:30]} 41. Kg2 {[%emt 0:00:30]} Nxg5 {[%emt 0:00:00]} 42. f4 {[%emt 0:00:13]} Nh7 {[%emt 0:00:00]} 43. Bb2 {[%emt 0:00:46]} g6 {[%emt 0:00:30]} 44. Bd3 {[%emt 0:01:35]} Nd5 {[%emt 0:00:30]} 45. Kf3 {[%emt 0:00:30]} Nhf6 {[%emt 0:00:00]} 46. Bc4 {[%emt 0:01:07]} Kf8 {[%emt 0:00:00]} 47. Re1 {[%emt 0:01:00]} Nb6 {[%emt 0:01:30]} 48. Bd3 {[%emt 0:00:30]} Nfd5 {[%emt 0:00:30]} 49. Ke4 {[%emt 0:00:49]} Ke7 {[%emt 0:00:00]} 50. Kf3 {[%emt 0:00:32]} Kd6 {[%emt 0:01:00]} 51. Ke4 {[%emt 0:00:18]} Nc3+ {[%emt 0:03:30]} 52. Ke3 {[%emt 0:00:53]} Ncd5+ {[%emt 0:01:51]} 53. Kf3 {[%emt 0:00:06]} Rh8 {[%emt 0:01:43]} 54. Rh1 {[%emt 0:01:05]} Kd7 0-1